bitfinex-derivatives/quotes_SOLF0:USTF0_20251108
["timestamp","ask_amount","ask_price","bid_price","bid_amount"]
[1762578837788,0.03987056,162.08,162.04,3.12]
[1762578838982,0.03987056,162.08,162.05,3.12]
[1762578840883,0.03987056,162.08,162.05,8.6772]
[1762578841086,0.03987056,162.08,162.06,3.12]
[1762578841880,0.03987056,162.08,162.07,3.12]
[1762578843484,4.69629046,162.16,162.1,3.1]
[1762578843691,2.91,162.15,162.1,3.1]
[1762578844485,2.95206822,162.14,162.11,3.14500532]
[1762578845391,0.04206822,162.14,162.11,3.14500532]
[1762578846391,0.04206822,162.14,162.11,8.70020532]
[1762578846591,0.04206822,162.14,162.12,3.1]
[1762578847091,0.04206822,162.14,162.13,3.1]
[1762578851201,2.95206822,162.14,162.12,3.1]
[1762578851897,2.95206822,162.14,162.11,3.14500532]
[1762578852794,2.91,162.13,162.11,0.04500532]
[1762578853400,2.91,162.12,162.11,0.04500532]
[1762578855705,2.91,162.12,162.04,7.67456898]
[1762578855905,2.91,162.12,161.84,37.77815544]
[1762578855906,18.49,162.15,161.94,15.72907772]
[1762578856201,1.78629046,161.95,161.88,24.84295352]
[1762578856506,1.78629046,161.95,161.75,18.67331961]
[1762578856507,1.78629046,161.91,161.84,11.17376383]
[1762578856799,1.78629046,161.93,161.86,3.1]
[1762578857001,1.78629046,161.93,161.88,3.1]
[1762578857002,0.0440308,161.89,161.88,3.1]
[1762578857201,9.65266161,161.89,161.88,3.1]
[1762578857406,5.13489972,161.89,161.88,14.27376383]
[1762578858005,1.78629046,161.95,161.89,3.1]
[1762578858206,1.78629046,161.95,161.88,11.17376383]
[1762578858207,0.04655786,161.94,161.91,3.1]
[1762578858403,0.04738932,161.94,161.91,3.1]
[1762578858607,0.04738932,161.94,161.92,14.27376383]
[1762578858907,0.04738932,161.94,161.92,3.1]
[1762578859207,0.04738932,161.94,161.93,14.27376383]
[1762578859410,0.04738932,161.94,161.93,3.1]
[1762578859601,0.04738932,161.94,161.93,14.27376383]
[1762578860909,0.04738932,161.94,161.93,11.17376383]
[1762578861305,0.04738932,161.94,161.93,14.27376383]
[1762578861814,0.04738932,161.94,161.93,11.17376383]
[1762578862005,0.04738932,161.94,161.91,3.1]
[1762578862307,0.04738932,161.94,161.9,0.04461017]
[1762578862308,0.04738932,161.94,161.93,14.27376383]
[1762578865011,0.04738932,161.94,161.91,3.1]
[1762578865205,0.04738932,161.94,161.92,3.1]
[1762578865511,0.04738932,161.94,161.93,11.17376383]
[1762578865917,0.04738932,161.94,161.92,3.1]
[1762578866607,0.04738932,161.94,161.9,0.04461017]
[1762578866608,1.83367978,161.94,161.9,3.14461017]
[1762578866816,1.83367978,161.94,161.91,14.27376383]
[1762578867012,1.83367978,161.94,161.91,11.17376383]
[1762578867216,1.83367978,161.94,161.9,0.04461017]
[1762578867717,1.83367978,161.94,161.9,3.14461017]
[1762578869004,0.04738932,161.94,161.92,3.1]
[1762578869416,0.04738932,161.94,161.92,14.27376383]
[1762578869918,0.04738932,161.94,161.93,14.27376383]
[1762578870116,0.04738932,161.94,161.93,3.1]
[1762578870309,0.04738932,161.94,161.93,14.27376383]
[1762578877116,4.72489592,161.98,161.94,3.09]
[1762578877324,2.79866874,162.01,161.95,3.09]
[1762578877520,4.72519438,162.0,161.96,3.09]
[1762578877719,4.72519438,161.99,161.97,3.09]
[1762578877929,2.79866874,162.01,161.97,14.26376383]
[1762578878223,4.76493508,162.0,161.98,11.17376383]
[1762578878419,4.72549106,161.99,161.98,11.17376383]
[1762578878721,4.72549106,161.99,161.97,3.09]
[1762578878918,0.03944402,162.0,161.98,11.17376383]
[1762578879222,0.03944402,162.0,161.97,3.09]
[1762578879223,4.7260426,161.99,161.97,11.17376383]
[1762578879423,4.7260426,161.98,161.97,11.17376383]
[1762578879618,0.03944402,162.0,161.97,14.26376383]
[1762578879825,4.72714496,161.99,161.97,14.26376383]
[1762578880027,0.03944402,162.0,161.98,3.09]
[1762578880326,4.72709209,161.99,161.98,3.09]
[1762578880724,0.03944402,162.0,161.97,3.09]
[1762578880923,0.03944402,162.0,161.97,14.26376383]
[1762578881324,4.72837667,161.99,161.98,3.09]
[1762578881525,0.03944402,162.0,161.98,3.09]
[1762578883116,0.03944402,162.0,161.98,14.26376383]
[1762578886433,0.03944402,162.0,161.99,2.95]
[1762578886730,4.77007629,162.0,161.99,2.95]
[1762578887229,4.77007629,162.0,161.99,14.12376383]
[1762578887429,0.03944402,162.0,161.99,14.12376383]
[1762578890226,4.77823927,162.0,161.99,14.12376383]
[1762578890427,0.03944402,162.0,161.99,14.12376383]
[1762578890819,4.77824118,162.0,161.99,14.12376383]
[1762578891326,0.03944402,162.0,161.99,14.12376383]
[1762578892430,86.3993,162.15,161.99,14.12376383]
[1762578892431,4.58869848,162.06,162.0,2.95]
[1762578892634,2.79866874,162.1,162.01,2.95]
[1762578892826,4.58885088,162.09,162.02,2.95]
[1762578893021,4.58885088,162.08,162.04,2.95]
[1762578893324,4.59194058,162.07,162.04,2.99210048]
[1762578893529,0.04572236,162.08,162.05,14.12376383]
[1762578893723,4.59232506,162.07,162.05,14.12376383]
[1762578893919,5.60222236,162.08,162.06,11.17376383]
[1762578894127,4.59259265,162.07,162.06,11.17376383]
[1762578894432,4.59259265,162.07,162.05,2.95]
[1762578894632,5.60222236,162.08,162.06,11.17376383]
[1762578894834,4.59551712,162.07,162.06,14.12376383]
[1762578895027,4.59551712,162.07,162.06,2.95]
[1762578895526,5.5571,162.06,162.04,0.04210048]
[1762578895728,4.59551712,162.05,161.9,2.79866874]
[1762578895928,2.79866874,162.1,161.93,2.79866874]
[1762578896133,5.5569,162.07,161.93,2.79866874]
[1762578896432,4.59793762,162.06,161.94,11.17376383]
[1762578896630,0.03985484,162.02,161.98,0.04288536]
[1762578897024,0.03985484,162.02,162.01,11.17376383]
[1762578897628,0.03985484,162.02,162.01,14.12376383]
[1762578900235,4.65333774,162.02,162.01,14.12376383]
[1762578902427,4.65480247,162.02,162.01,14.12376383]
[1762578905238,4.65480247,162.02,162.01,26.41641688]
[1762578905239,0.03985484,162.02,162.01,26.41641688]
[1762578905538,0.03985484,162.02,162.01,18.80349414]
[1762578905942,0.03985484,162.02,162.01,26.41641688]
[1762578906440,0.03985484,162.02,162.01,18.80349414]
[1762578907334,0.03985484,162.02,162.01,21.59472458]
[1762578907538,0.03985484,162.02,162.01,24.55472458]
[1762578907839,0.03985484,162.02,162.01,18.81349414]
[1762578908037,0.03985484,162.02,162.01,24.55472615]
[1762578908238,0.03985484,162.02,162.01,14.13376383]
[1762578912531,0.03985484,162.02,162.01,19.87499584]
[1762578912740,1.07410723,162.08,162.02,2.96]
[1762578912936,5.5565,162.08,162.04,2.96]
[1762578913336,5.5565,162.08,162.05,14.13376383]
[1762578913738,5.60050114,162.08,162.05,14.17364195]
[1762578914138,5.5569,162.07,162.05,14.17364195]
[1762578914838,0.04400114,162.08,162.07,2.96]
[1762578915143,0.04400114,162.08,162.07,19.87780026]
[1762578916340,5.5545,162.14,162.08,2.96]
[1762578916547,5.5545,162.14,162.09,2.96]
[1762578916842,2.79866874,162.18,162.11,2.96]
[1762578917146,3.87217955,162.18,162.11,2.96]
[1762578917439,0.04164555,162.16,162.13,0.04603804]
[1762578918046,5.5541,162.15,162.13,0.04603804]
[1762578918446,6.7941,162.15,162.13,0.04603804]
[1762578919148,5.5555,162.11,162.07,8.70403643]
[1762578919342,5.5555,162.11,162.08,11.17376383]
[1762578919845,2.79866874,162.15,162.05,8.70403643]
[1762578920035,0.04492909,162.12,162.08,0.04489254]
[1762578920743,5.5562,162.09,162.08,0.04489254]
[1762578925844,0.04492909,162.12,162.04,5.74403643]
[1762578925845,2.84359783,162.12,162.04,5.74403643]
[1762578926143,5.5573,162.06,162.03,2.96]
[1762578926347,2.79866874,162.12,162.03,19.87780026]
[1762578926646,2.79866874,162.12,162.03,2.96]
[1762578926839,2.79866874,162.12,162.06,0.04434118]
[1762578927047,5.557,162.07,162.06,0.04434118]
[1762578932544,5.557,162.07,161.99,7.61292274]
[1762578932545,2.83943523,162.09,161.99,5.74403643]
[1762578932849,2.79866874,162.06,162.0,11.17376383]
[1762578933049,2.79866874,162.06,161.99,11.17376383]
[1762578933249,5.5595,161.99,161.97,8.82403643]
[1762578933450,5.5595,161.99,161.98,14.25376383]
[1762578934953,0.04564789,162.0,161.98,14.25376383]
[1762578935151,0.04564789,162.0,161.99,11.17376383]
[1762578936744,5.60494789,162.0,161.97,3.08]
[1762578936942,5.60494789,162.0,161.98,3.08]
[1762578937155,5.60494789,162.0,161.98,14.25376383]
[1762578937650,5.60494789,162.0,161.96,5.78196368]
[1762578937651,5.5601,161.97,161.96,0.03792725]
[1762578937851,5.5601,161.97,161.96,1.30109108]
[1762578939655,0.04564789,162.0,161.97,3.08]
[1762578939855,1.78971314,162.08,161.99,4.34316383]
[1762578940153,1.78971314,162.08,162.0,3.08]
[1762578940561,1.78971314,162.08,162.02,3.08]
[1762578940856,1.78971314,162.08,162.02,4.34316383]
[1762578941056,0.04524633,162.07,162.03,0.04746224]
[1762578941263,5.5577,162.05,162.03,3.12746224]
[1762578941852,5.5577,162.05,162.03,0.04746224]
[1762578946768,5.60214633,162.07,162.05,2.91]
[1762578946959,5.60214633,162.07,162.06,1.26316383]
[1762578947263,0.04524633,162.07,162.06,4.17316383]
[1762578947457,0.04524633,162.07,162.06,2.91]
[1762578948057,0.04524633,162.07,162.06,4.17316383]
[1762578949659,11.1059,162.19,162.07,2.91]
[1762578949660,29.5959,162.19,162.07,2.91]
[1762578949855,29.5959,162.19,162.08,2.91]
[1762578950053,1.78971314,162.16,162.08,4.17316383]
[1762578950257,1.78971314,162.16,162.09,1.26316383]
[1762578950657,0.04731071,162.14,162.11,0.04035703]
[1762578950858,5.5552,162.12,162.11,0.04035703]
[1762578953656,5.60161071,162.14,162.11,4.21352086]
[1762578953964,5.60161071,162.14,162.12,4.17316383]
[1762578954364,5.60161071,162.14,162.12,2.91]
[1762578955559,0.04731071,162.14,162.13,4.17316383]
[1762578958569,1.78971314,162.23,162.14,2.91]
[1762578958768,1.07332871,162.21,162.15,4.17316383]
[1762578958964,1.07332871,162.21,162.17,2.91]
[1762578959468,1.11236016,162.21,162.19,2.91]
[1762578959766,6.66436016,162.21,162.19,2.91]
[1762578960270,6.66436016,162.21,162.2,4.17316383]
[1762578960570,6.66436016,162.21,162.2,2.91]
[1762578961561,6.66436016,162.21,162.17,0.04361324]
[1762578961855,1.11236016,162.21,162.18,4.17316383]
[1762578962260,0.03903145,162.21,162.2,4.17316383]
[1762578963564,11.0954,162.34,162.2,4.17316383]
[1762578963565,18.49,162.37,162.21,2.99]
[1762578963765,1.78971314,162.33,162.23,2.99]
[1762578963968,5.5505,162.26,162.22,1.26316383]
[1762578964169,5.5505,162.26,162.23,1.26316383]
[1762578964370,1.78971314,162.29,162.23,1.26316383]
[1762578964573,5.5508,162.25,162.24,1.30481213]
[1762578964871,5.5508,162.25,162.24,0.0416483]
[1762578967272,5.5508,162.25,162.24,1.30481213]
[1762578967667,5.5508,162.25,162.24,0.0416483]
[1762578968362,5.5528,162.19,162.14,2.99]
[1762578968569,1.78971314,162.2,162.15,4.25316383]
[1762578968863,1.78971314,162.2,162.12,2.99]
[1762578968864,5.5539,162.16,162.12,2.99]
[1762578969376,5.5539,162.16,162.14,2.99]
[1762578969377,5.60140393,162.16,162.14,2.99]
[1762578969573,5.60140393,162.16,162.13,1.26316383]
[1762578969761,5.60140393,162.16,162.14,1.26316383]
[1762578969965,5.5542,162.15,162.12,3.03363978]
[1762578970168,5.5542,162.15,162.13,1.26316383]
[1762578970468,5.5542,162.15,162.14,1.26316383]
[1762578971069,0.04750393,162.16,162.14,4.25316383]
[1762578971266,0.04750393,162.16,162.15,1.26316383]
[1762578972372,5.554,162.15,162.12,3.03363978]
[1762578972680,5.554,162.15,162.13,1.26316383]
[1762578972878,5.554,162.15,162.14,1.26316383]
[1762578973874,0.04750393,162.16,162.14,1.26316383]
[1762578974068,0.04750393,162.16,162.15,1.26316383]
[1762578974275,0.04750393,162.16,162.13,4.25316383]
[1762578974678,0.04750393,162.16,162.14,1.26316383]
[1762578974982,5.60140393,162.16,162.14,1.26316383]
[1762578975182,5.60140393,162.16,162.15,1.26316383]
[1762578975382,5.60140393,162.16,162.14,1.26316383]
[1762578975779,5.60140393,162.16,162.15,1.26316383]
[1762578975980,5.60140393,162.16,162.14,1.26316383]
[1762578976476,0.04750393,162.16,162.15,1.26316383]
[1762578976676,0.04750393,162.16,162.14,1.26316383]
[1762578977284,0.04750393,162.16,162.12,3.03363978]
[1762578977589,0.04750393,162.16,162.13,4.25316383]
[1762578977970,0.04750393,162.16,162.12,0.04363978]
[1762578978785,5.5543,162.14,162.12,3.03363978]
[1762578978983,5.5543,162.14,162.13,1.26316383]
[1762578979177,5.5543,162.14,162.13,4.25316383]
[1762578980079,5.60130393,162.16,162.14,2.99]
[1762578980286,5.60130393,162.16,162.14,4.25316383]
[1762578981082,5.5544,162.14,162.12,3.03363978]
[1762578981287,5.5544,162.14,162.13,1.26316383]
[1762578982382,0.04750393,162.16,162.13,1.26316383]
[1762578982582,0.04750393,162.16,162.13,4.25316383]
[1762578983789,0.04750393,162.16,162.13,1.26316383]
[1762578983989,5.5542,162.15,162.13,1.26316383]
[1762578985591,5.5542,162.15,162.13,4.25316383]
[1762578987183,5.5542,162.15,162.13,1.26316383]
[1762578987379,5.5547,162.13,162.12,0.04363978]
[1762578987687,5.5547,162.13,162.12,1.30680361]
[1762578987989,5.5558,162.1,162.08,2.99]
[1762578988894,5.5551,162.12,162.08,2.99]
[1762578989191,0.04202428,162.12,162.08,3.03603085]
[1762578989492,0.04202428,162.12,162.1,2.99]
[1762578989787,0.04202428,162.12,162.1,8.73403643]
[1762578989992,5.5538,162.16,162.11,2.99]
[1762578990385,5.5531,162.18,162.11,2.99]
[1762578990590,5.5531,162.18,162.12,2.99]
[1762578990787,4.46713983,162.22,162.12,2.99]
[1762578990994,0.04178407,162.19,162.15,3.03604739]
[1762578991687,0.04178407,162.19,162.16,2.99]
[1762578991997,0.04178407,162.19,162.16,8.73403643]
[1762578992188,0.04178407,162.19,162.17,2.99]
[1762578992784,1.07256784,162.34,162.17,2.99]
[1762578992987,1.07256784,162.34,162.2,2.94]
[1762578993191,1.78527579,162.28,162.22,2.94]
[1762578993783,0.04683726,162.27,162.24,2.94]
[1762578994987,0.04683726,162.27,162.23,0.04340978]
[1762578994988,0.04683726,162.27,162.23,2.98340978]
[1762578995192,1.78527579,162.25,162.23,0.04340978]
[1762578995492,5.5509,162.24,162.23,0.04340978]
[1762578998790,5.5527,162.19,162.16,2.94]
[1762578999394,7.25243905,162.25,162.13,8.68403643]
[1762578999597,7.25243905,162.25,162.13,2.94]
[1762578999794,5.5529,162.18,162.17,0.04036726]
[1762579000299,5.5529,162.18,162.17,6.726e-05]
[1762579000893,5.5535,162.17,162.13,5.74403643]
[1762579001098,8.32561881,162.25,162.12,5.74403643]
[1762579001305,0.04526782,162.2,162.17,0.04038142]
[1762579001498,5.5526,162.19,162.17,0.04038142]
[1762579001899,0.04526782,162.2,162.09,5.74403643]
[1762579002201,5.5546,162.14,162.09,5.74403643]
[1762579002407,5.5546,162.14,162.1,3.08]
[1762579003006,5.555,162.12,162.1,0.04712621]
[1762579020721,5.555,162.12,161.99,13.17222274]
[1762579020722,8.5776,162.05,161.99,5.74403643]
[1762579021015,5.5576,162.05,161.99,5.74403643]
[1762579021212,5.5576,162.05,161.96,7.61292274]
[1762579021213,5.5576,162.05,161.98,5.74403643]
[1762579022019,3.05889724,162.03,162.0,0.04116911]
[1762579022222,3.06192366,162.03,162.0,0.04086518]
[1762579022612,5.559,162.01,162.0,0.04086518]
[1762579022817,8.559,162.01,162.0,0.04086518]
[1762579023817,3.0,162.01,161.93,3.1]
[1762579024824,0.0470134,161.99,161.93,8.84403643]
[1762579025122,0.0470134,161.99,161.94,3.1]
[1762579026317,3.0470134,161.99,161.94,3.1]
[1762579026828,8.6067134,161.99,161.94,3.1]
[1762579027912,5.6067134,161.99,161.94,3.1]
[1762579029335,8.6067134,161.99,161.94,3.1]
[1762579029720,3.0,161.98,161.94,3.1]
[1762579030230,0.0470134,161.99,161.94,3.1]
[1762579030426,3.0470134,161.99,161.94,3.1]
[1762579031120,3.0,161.98,161.94,3.1]
[1762579031517,3.0,161.98,161.88,3.1]
[1762579031721,0.04373304,161.95,161.88,3.1]
[1762579032226,0.04373304,161.95,161.9,3.1]
[1762579034927,3.04373304,161.95,161.9,3.1]
[1762579035323,3.04373304,161.95,161.87,5.5636]
[1762579035324,3.0,161.93,161.87,5.5636]
[1762579035528,0.04313075,161.92,161.88,3.1]
[1762579040929,0.04313075,161.92,161.88,8.6631]
[1762579041231,0.04313075,161.92,161.89,3.1]
[1762579042629,0.04313075,161.92,161.85,3.1]
[1762579042630,8.60513075,161.92,161.85,3.1]
[1762579044430,5.5624,161.91,161.85,3.1]
[1762579046830,8.5627,161.9,161.85,3.1]
[1762579047034,3.0,161.9,161.85,3.1]
[1762579047633,3.04313075,161.92,161.85,3.1]
[1762579048739,3.04313075,161.92,161.86,3.1]
[1762579050139,8.5624,161.91,161.86,3.1]
[1762579050341,5.5624,161.91,161.86,3.1]
[1762579050640,8.5624,161.91,161.86,3.1]
[1762579052237,5.5624,161.91,161.86,3.1]
[1762579052740,8.4824,161.91,161.86,3.1]
[1762579052929,2.92,161.91,161.86,8.6637]
[1762579053131,2.92,161.91,161.87,2.94]
[1762579054741,5.60513075,161.92,161.87,2.94]
[1762579055440,0.04313075,161.92,161.87,2.94]
[1762579055634,0.04313075,161.92,161.87,8.68403643]
[1762579055839,0.04313075,161.92,161.88,2.94]
[1762579056038,0.04120894,161.92,161.88,2.94]
[1762579056636,2.96120894,161.92,161.88,2.94]
[1762579056845,2.92,161.91,161.88,2.94]
[1762579057938,5.5627,161.9,161.88,2.94]
[1762579058143,8.4827,161.9,161.84,5.74403643]
[1762579058443,2.96431379,161.89,161.85,2.94]
[1762579059546,5.5634,161.88,161.85,2.94]
[1762579059949,8.4834,161.88,161.85,2.94]
[1762579061345,2.92,161.87,161.83,2.94]
[1762579061746,8.4837,161.87,161.83,2.94]
[1762579062148,8.4837,161.87,161.82,1.6164109]
[1762579062149,2.92,161.87,161.82,4.7464109]
[1762579062639,0.04431379,161.89,161.83,3.13]
[1762579062840,0.04431379,161.89,161.83,8.87403643]
[1762579063044,0.04431379,161.89,161.84,3.13]
[1762579064143,0.04431379,161.89,161.86,3.13]
[1762579066950,0.04431379,161.89,161.86,8.87403643]
[1762579067146,0.04431379,161.89,161.87,3.13]
[1762579067549,0.04431379,161.89,161.88,3.13]
[1762579070354,0.04431379,161.89,161.88,8.88693074]
[1762579070555,4.81205992,161.95,161.89,3.13]
[1762579071758,4.81205992,161.95,161.9,0.04266653]
[1762579071759,3.02,161.92,161.9,0.04266653]
[1762579072350,3.02,161.92,161.9,3.17266653]
[1762579072954,5.5617,161.93,161.9,3.17266653]
[1762579073958,8.5817,161.93,161.9,3.17266653]
[1762579074453,8.5817,161.93,161.9,8.92959727]
[1762579075351,3.02,161.92,161.9,5.79959727]
[1762579075656,3.02,161.92,161.9,0.04266653]
[1762579076951,8.582,161.92,161.9,0.04266653]
[1762579077657,3.02,161.91,161.9,0.04266653]
[1762579079157,3.02,161.93,161.9,3.17266653]
[1762579079361,8.62621472,161.94,161.91,3.13]
[1762579079870,8.5817,161.93,161.9,3.17266653]
[1762579080354,8.5817,161.93,161.9,8.92959727]
[1762579081959,3.02,161.93,161.9,8.92959727]
[1762579083268,0.04481472,161.94,161.92,3.0]
[1762579083571,0.04481472,161.94,161.93,3.0]
[1762579083964,0.04481472,161.94,161.93,8.75693074]
[1762579085066,0.04481472,161.94,161.93,3.0]
[1762579085469,2.92481472,161.94,161.93,5.77247934]
[1762579085666,2.92481472,161.94,161.9,5.81514587]
[1762579085971,2.88,161.92,161.9,0.04266653]
[1762579086768,0.04481472,161.94,161.9,8.81514587]
[1762579087066,0.04481472,161.94,161.92,8.77247934]
[1762579087261,2.92481472,161.94,161.92,5.77247934]
[1762579087471,2.92481472,161.94,161.91,5.77247934]
[1762579087870,2.92481472,161.94,161.91,8.77247934]
[1762579088069,0.04481472,161.94,161.93,3.0]
[1762579088272,0.04481472,161.94,161.93,8.77247934]
[1762579088576,0.04481472,161.94,161.93,3.0]
[1762579088966,8.4396,161.99,161.94,3.0]
[1762579089166,8.4396,161.99,161.95,8.77057969]
[1762579089368,5.5596,161.99,161.96,3.0]
[1762579089773,8.4396,161.99,161.96,3.0]
[1762579090072,8.48428343,161.99,161.96,0.04060869]
[1762579090470,8.44,161.98,161.96,0.04060869]
[1762579090664,2.88,161.97,161.96,0.04060869]
[1762579097583,2.88,161.94,161.89,8.77057969]
[1762579098086,2.88,161.94,161.9,3.0]
[1762579098684,0.04618842,161.94,161.9,3.04496768]
[1762579099389,0.04618842,161.94,161.91,8.77057969]
[1762579099574,0.04618842,161.94,161.92,3.0]
[1762579099780,0.04618842,161.94,161.92,8.77057969]
[1762579099982,0.04618842,161.94,161.92,3.0]
[1762579100679,0.04618842,161.94,161.92,8.77057969]
[1762579100875,0.04618842,161.94,161.93,3.0]
[1762579103386,0.04618842,161.94,161.93,8.77057969]
[1762579103787,7.35135992,162.0,161.94,3.0]
[1762579103988,2.88,162.0,161.95,3.0]
[1762579104386,5.56,161.98,161.95,3.0]
[1762579104890,5.60373281,161.98,161.95,3.04533389]
[1762579105494,5.60373281,161.98,161.95,0.04533389]
[1762579105495,2.88,161.97,161.95,0.04533389]
[1762579105693,8.4403,161.97,161.95,0.04533389]
[1762579108990,2.88,161.96,161.95,0.04533389]
[1762579111308,2.88,161.96,161.9,5.77057969]
[1762579111309,2.88,161.94,161.9,5.77057969]
[1762579111591,2.88,161.93,161.89,5.77057969]
[1762579111796,2.88,161.9,161.86,5.77057969]
[1762579112094,2.88,161.9,161.83,3.0]
[1762579112095,2.88,161.9,161.85,8.77057969]
[1762579112292,2.92587266,161.89,161.86,0.03924197]
[1762579112691,3.02,161.87,161.86,0.03924197]
[1762579114394,3.02,161.83,161.82,7.38699059]
[1762579114698,3.02,161.83,161.82,1.6164109]
[1762579115498,8.62555158,161.84,161.82,1.6164109]
[1762579116896,3.02,161.83,161.82,1.6164109]
[1762579119798,4.81205992,161.83,161.82,1.6164109]
[1762579120297,3.02,161.83,161.82,1.6164109]
[1762579121201,3.02,161.83,161.82,1.09e-05]
[1762579121407,3.02,161.81,161.77,2.99]
[1762579121700,3.05888442,161.81,161.77,2.99]
[1762579122390,3.05888442,161.81,161.7,8.83057969]
[1762579122391,2.89,161.79,161.7,8.83057969]
[1762579122593,2.93635951,161.76,161.71,3.06]
[1762579122801,2.89,161.75,161.71,3.06]
[1762579123193,0.04635951,161.76,161.71,3.06]
[1762579123392,0.04635951,161.76,161.72,3.06]
[1762579123802,5.5652,161.83,161.75,5.5675]
[1762579123992,5.5652,161.83,161.76,3.06]
[1762579124196,2.89,161.85,161.76,3.06]
[1762579124904,2.93294615,161.82,161.79,0.04346023]
[1762579126108,0.04294615,161.82,161.79,3.10346023]
[1762579129205,0.04294615,161.82,161.81,3.06]
[1762579131808,0.04294615,161.82,161.79,3.10346023]
[1762579134902,0.04294615,161.82,161.79,8.66966023]
[1762579135409,0.04294615,161.82,161.8,3.06]
[1762579140012,0.04294615,161.82,161.8,8.6259]
[1762579140313,0.04294615,161.82,161.81,3.06]
[1762579140812,29.6503,161.97,161.84,3.06]
[1762579140813,5.5625,161.91,161.84,3.06]
[1762579141011,8.4525,161.91,161.84,3.06]
[1762579141305,2.89,161.9,161.84,3.06]
[1762579141716,2.89,161.88,161.85,0.03976047]
[1762579142304,2.89,161.86,161.85,0.03976047]
[1762579144106,4.13,161.86,161.85,0.03976047]
[1762579144315,8.5947,161.84,161.78,3.12]
[1762579144816,3.03,161.84,161.78,3.12]
[1762579145209,0.04550287,161.83,161.79,3.16096718]
[1762579145412,0.04745461,161.83,161.79,3.16096718]
[1762579146723,0.04745461,161.83,161.81,3.12]
[1762579150027,0.04745461,161.83,161.82,3.12]
[1762579150418,8.5931,161.89,161.84,3.12]
[1762579150622,3.03,161.89,161.84,3.12]
[1762579151432,0.04451928,161.88,161.86,3.12]
[1762579154326,3.07451928,161.88,161.85,0.0393489]
[1762579154533,3.07451928,161.88,161.85,3.1593489]
[1762579156037,3.07451928,161.88,161.85,0.0393489]
[1762579156231,3.03,161.86,161.85,0.0393489]
[1762579156433,3.03,161.86,161.8,5.77057969]
[1762579156631,3.03,161.86,161.79,8.89057969]
[1762579156821,8.5945,161.85,161.81,3.12]
[1762579157028,2.80316653,161.87,161.81,3.12]
[1762579157228,5.83316653,161.87,161.81,8.89057969]
[1762579157427,3.03,161.85,161.82,0.04399035]
[1762579157731,0.04653924,161.86,161.82,3.16399035]
[1762579158040,0.04653924,161.86,161.84,3.12]
[1762579162634,0.04653924,161.86,161.82,5.80939356]
[1762579162834,3.07653924,161.86,161.82,8.92939356]
[1762579163140,5.5644,161.85,161.82,3.16399035]
[1762579163633,8.5944,161.85,161.82,3.16399035]
[1762579165540,3.03,161.84,161.82,0.04399035]
[1762579165943,8.5947,161.84,161.82,0.04399035]
[1762579166835,3.03,161.83,161.82,0.04399035]
[1762579168644,3.07653924,161.86,161.82,0.04399035]
[1762579168945,5.5648,161.84,161.82,0.04399035]
[1762579169244,8.5948,161.84,161.82,0.04399035]
[1762579174248,2.98,161.83,161.82,0.04399035]
[1762579175251,2.98,161.85,161.82,0.04399035]
[1762579175841,2.98,161.83,161.82,0.04399035]
[1762579176542,8.5447,161.84,161.82,0.04399035]
[1762579176742,2.98,161.84,161.82,0.04399035]
[1762579178746,3.02653924,161.86,161.82,2.99399035]
[1762579178945,3.02653924,161.86,161.83,2.95]
[1762579179147,3.02653924,161.86,161.82,0.04399035]
[1762579179347,2.98,161.85,161.82,2.99399035]
[1762579181046,2.98,161.85,161.82,0.04399035]
[1762579181249,2.98,161.85,161.82,2.99399035]
[1762579182353,2.98,161.85,161.82,8.76643108]
[1762579182745,0.04653924,161.86,161.83,8.72244073]
[1762579183051,0.04653924,161.86,161.84,2.95]
[1762579183253,3.05653924,161.86,161.84,2.95]
[1762579184453,0.04653924,161.86,161.84,2.95]
[1762579185549,0.04653924,161.86,161.84,8.72244073]
[1762579185852,0.04653924,161.86,161.85,2.95]
[1762579187645,0.04653924,161.86,161.84,2.95]
[1762579191958,0.04653924,161.86,161.85,2.95]
[1762579192552,0.04653924,161.86,161.85,8.72244073]